[Event "Polish University-ch Teams 2024"]
[Site "Lublin"]
[Date "2024.02.24"]
[Round "3.16"]
[White "Urbanski, Wojciech"]
[Black "Brozyna, Mateusz"]
[Result "0-1"]
[ECO "D02"]
[WhiteElo "1626"]
[BlackElo "2259"]
[Annotator "TA"]
[PlyCount "100"]
[EventDate "2024.02.22"]
[EventType "team-tourn"]
[EventCountry "POL"]
[SourceTitle "playchess.com"]
[Source "ChessBase"]
[SourceQuality "1"]
[TimeControl "900+5"]

{[%evp 13,100,-14,-6,-16,-2,-29,-27,-39,-42,-22,-7,-10,0,-4,-12,-75,-70,-82,-63,-62,-62,-101,-64,-144,-149,-148,-128,-129,-80,-83,-67,-212,-202,-291,-298,-279,-208,-302,-295,-291,-277,-348,-135,-429,-415,-421,-270,-216,-246,-265,-268,-262,-269,-258,-265,-231,-201,-250,-235,-243,-247,-255,-235,-249,-244,-254,-253,-151,-814,-1216,-1183,-1049,-1097,-718,-659,-3098,-2616,-29971,-29974,-29975,-29972,-29979,-29980,-29980,-29980,-29976,-29977,-29988,-29989]} 1. d4 {[%emt 0:00:02]} d5 {[%emt 0:00:01]} 2. Bf4 {[%emt 0:00:02]} Nf6 {[%emt 0:00:02]} 3. Nf3 {[%emt 0:00:02]} c5 {[%emt 0:00:01]} 4. e3 {[%emt 0:00:01]} Nc6 {[%emt 0:00:04]} 5. c3 {[%emt 0:00:01]} Qb6 {[%emt 0:00:03]} 6. Qc1 {[%emt 0:00:09]} Bf5 {[%emt 0:00:08]} 7. Nbd2 {[%emt 0:00:09]} e6 {[%emt 0:00:02]} 8. Be2 {[%emt 0:01:03]} h6 {[%emt 0:00:03]} 9. Ne5 {[%emt 0:01:01]} Be7 {[%emt 0:00:18]} 10. g4 {[%emt 0:01:12] [#] Droht dxc5 und aus. Schwarz hat minimalen Vorteil.} Bh7 {[%emt 0:00:11]} 11. h4 {[%emt 0:00:02]} Ne4 {[%emt 0:01:35]} 12. Nxe4 {[%emt 0:03:38]} Bxe4 {[%emt 0:00:05]} 13. f3 {[%emt 0:00:04]} Bh7 {[%emt 0:00:13]} 14. Bg3 {[%emt 0:01:05]} (14. Qd2 $11 {bleibt in der Remisbreite.}) 14... Bd6 $17 {[%emt 0:00:45][%cal Rc5d4] [#] Und ...cxd4 würde nun gewinnen.} 15. f4 {[%emt 0:00:58]} f6 {[%emt 0:00:39]} (15... Be4 {ist vielschichtiger.} 16. O-O cxd4 17. exd4 f6) 16. Nxc6 {[%emt 0:02:52]} bxc6 {[%emt 0:00:04]} 17. b3 {[%emt 0:00:23]} Rc8 {[%emt 0:00:15]} 18. Qd2 {[%emt 0:00:06]} ({Besser ist} 18. dxc5 $15 Bxc5 19. Kf2) 18... cxd4 {[%emt 0:00:16]} 19. exd4 {[%emt 0:00:02]} c5 {[%emt 0:00:03] Schwarz steht aktiver.} 20. Bf2 {[%emt 0:00:17]} cxd4 {[%emt 0:00:24]} (20... Qc7 $142 21. dxc5 Bxf4) 21. Bxd4 {[%emt 0:00:02]} Bc5 {[%emt 0:00:03][%cal Oe6e5]} 22. g5 {[%emt 0:01:33]} (22. Rh3 $15) 22... Be4 $19 {[%emt 0:00:58]} 23. Rh2 {[%emt 0:01:23]} (23. Rf1 {kämpft weiter.}) 23... hxg5 {[%emt 0:00:08]} 24. fxg5 {[%emt 0:00:04]} e5 {[%emt 0:00:17]} 25. Bf2 {[%emt 0:00:21]} (25. Bxc5 {einziger Zug.} Qxc5 26. c4) 25... Bxf2+ {[%emt 0:00:49]} 26. Rxf2 {[%emt 0:00:01]} Rxh4 {[%emt 0:00:06] Weiss muss nun ...Rh3 beachten.} 27. gxf6 {[%emt 0:00:05]} Rh1+ $2 {[%emt 0:00:42]} (27... gxf6 $19 {und Schwarz behält klar die Oberhand.} 28. O-O-O Rh3 (28... Qxf2 29. Bb5+ Ke7 30. Qxf2 $14) (28... Rxc3+ $2 29. Qxc3 Qxf2 30. Bb5+ Kf8 31. Rf1 $19)) 28. Bf1 $2 {[%emt 0:00:02][%mdl 8192]} (28. Rf1 $17 Rxf1+ (28... gxf6 29. Rxh1 Bxh1 30. O-O-O $17) 29. Bxf1 gxf6 (29... Qxf6 $2 30. c4 $19) 30. O-O-O) 28... gxf6 {[%emt 0:00:21]} 29. O-O-O {[%emt 0:00:15]} Rxc3+ {[%emt 0:02:26]} 30. Qxc3 {[%emt 0:00:26]} Qxf2 {[%emt 0:00:02]} 31. Bb5+ {[%emt 0:00:05]} Kf7 {[%emt 0:00:16]} 32. Qc7+ {[%emt 0:00:02]} Kg6 {[%emt 0:00:31]} 33. Be8+ {[%emt 0:00:02]} Kh6 {[%emt 0:02:56]} 34. Rxh1+ {[%emt 0:00:16]} Bxh1 {[%emt 0:00:01][%mdl 4096] Endspiel. KQB-KQB} 35. Qf7 {[%emt 0:00:01][%csl Ge8][%cal Rf7g6]} Qg1+ {[%emt 0:00:02]} (35... Qxa2 36. Qg6#) 36. Kb2 {[%emt 0:00:02]} Qg5 {[%emt 0:00:02]} ({Minderwertig wäre} 36... Qf2+ 37. Ka3 Qc5+ 38. Ka4 Qd4+ 39. b4 $11) 37. Qxa7 {[%emt 0:00:03]} d4 {[%emt 0:00:29]} 38. Qf7 {[%emt 0:00:08]} Bf3 {[%emt 0:00:19]} 39. Qf8+ {[%emt 0:00:12]} Qg7 {[%emt 0:00:03]} 40. Qxg7+ {[%emt 0:00:01]} (40. Qc5) 40... Kxg7 {[%emt 0:00:02] KB-KB. Ein Fehler, der zur Niederlage führt.} 41. a4 {[%emt 0:00:01]} Kf8 {[%emt 0:00:06]} 42. Bg6 {[%emt 0:00:04]} Ke7 {[%emt 0:00:53]} 43. Kc2 {[%emt 0:00:07]} Kd6 {[%emt 0:00:04] ...Kc5 wäre nun fies.} 44. Kd3 {[%emt 0:00:08]} Kc5 {[%emt 0:00:02] ( -> ...Bd5)} 45. Bf5 {[%emt 0:00:08]} Bd5 {[%emt 0:00:03] Schwarz setzt Matt.} 46. a5 {[%emt 0:00:06]} Bxb3 {[%emt 0:00:02]} 47. a6 {[%emt 0:00:03]} Bc4+ {[%emt 0:00:02]} 48. Ke4 {[%emt 0:00:04]} Bxa6 {[%emt 0:00:08]} 49. Bg4 {[%emt 0:00:02]} Kd6 {[%emt 0:00:05]} 50. Kf5 {[%emt 0:00:02]} Bc8+ {[%emt 0:00:02] Gewichteter Fehlerwert: Weiß=0.57/Schwarz=0.20 (präzise) .  Verlustzug:     	Weiß=1     	---        Gewinn verpasst:   	---       	Schwarz=1     Fehler:       	Weiß=6     	Schwarz=1     Ungenau:       	Weiß=3     	Schwarz=2     OK:         	Weiß=8     	Schwarz=14    Bester:       	Weiß=3     	Schwarz=3} 0-1

[Event "Polish University-ch Teams 2024"]
[Site "Lublin"]
[Date "2024.02.24"]
[Round "3.17"]
[White "Hadrian, Patryk"]
[Black "Drozdzal, Michal"]
[Result "1/2-1/2"]
[ECO "D00"]
[WhiteElo "1658"]
[BlackElo "1557"]
[Annotator "NA RC"]
[PlyCount "89"]
[EventDate "2024.02.22"]
[EventType "team-tourn"]
[EventCountry "POL"]
[SourceTitle "playchess.com"]
[Source "ChessBase"]
[SourceQuality "1"]
[TimeControl "900+5"]

1. d4 {[%emt 0:00:02]} Nf6 {[%emt 0:00:03]} 2. Nc3 {[%emt 0:00:02]} e6 {[%emt 0:00:02]} 3. Bf4 {[%emt 0:00:05]} d5 {[%emt 0:00:03]} 4. Nb5 {[%emt 0:00:13]} Bd6 {[%emt 0:00:31]} 5. Nxd6+ {[%emt 0:00:05]} cxd6 {[%emt 0:00:02]} 6. e3 {[%emt 0:00:09]} O-O {[%emt 0:00:03]} 7. Bd3 {[%emt 0:00:50]} Nc6 {[%emt 0:00:07]} 8. c3 {[%emt 0:00:04]} e5 {[%emt 0:00:12]} 9. Bg3 {[%emt 0:00:09]} e4 {[%emt 0:00:33]} 10. Bc2 {[%emt 0:00:20]} Ne7 {[%emt 0:00:46]} 11. Ne2 {[%emt 0:01:11]} Bg4 {[%emt 0:00:09]} 12. h3 {[%emt 0:00:41]} Bh5 {[%emt 0:00:13]} 13. Qd2 {[%emt 0:00:14]} Rc8 {[%emt 0:00:31]} 14. Nf4 {[%emt 0:01:08]} Qb6 {[%emt 0:00:42]} 15. Rb1 {[%emt 0:00:14]} Qa6 {[%emt 0:00:15]} 16. Bb3 {[%emt 0:00:35]} Bg6 {[%emt 0:00:53]} 17. Bh4 {[%emt 0:00:35]} Qb5 {[%emt 0:00:52]} 18. Bxf6 {[%emt 0:00:47]} gxf6 {[%emt 0:00:03]} 19. Qe2 {[%emt 0:01:05]} Qc6 {[%emt 0:00:27]} 20. h4 {[%emt 0:01:35]} a5 {[%emt 0:00:13]} 21. a4 {[%emt 0:00:35]} Bf5 {[%emt 0:00:34]} 22. Nh5 {[%emt 0:00:13]} Qb6 {[%emt 0:00:27]} 23. Nxf6+ {[%emt 0:01:10]} Kg7 {[%emt 0:00:26]} 24. Nxd5 {[%emt 0:01:12]} Nxd5 {[%emt 0:00:26]} 25. Bxd5 {[%emt 0:00:02]} Rxc3 {[%emt 0:00:39]} 26. O-O {[%emt 0:00:19]} Rcc8 {[%emt 0:00:46]} 27. g4 {[%emt 0:00:27]} Bd7 {[%emt 0:00:49]} 28. Bxe4 {[%emt 0:00:43]} Bxa4 {[%emt 0:00:03]} 29. g5 {[%emt 0:00:24]} d5 {[%emt 0:00:22]} 30. Bd3 {[%emt 0:00:15]} f5 {[%emt 0:00:48]} 31. Rfc1 {[%emt 0:00:54]} Qe6 {[%emt 0:01:15]} 32. Rc3 {[%emt 0:00:55]} Bd7 {[%emt 0:01:35]} 33. Rbc1 {[%emt 0:00:10]} Rce8 {[%emt 0:01:11]} 34. Bb5 {[%emt 0:00:10]} Bxb5 {[%emt 0:00:23]} 35. Qxb5 {[%emt 0:00:03]} f4 {[%emt 0:00:01]} 36. Rc7+ {[%emt 0:00:16]} Kh8 {[%emt 0:00:03]} 37. Qxb7 {[%emt 0:00:05]} Qg4+ {[%emt 0:00:42]} 38. Kf1 {[%emt 0:00:02]} Qh3+ {[%emt 0:00:23]} 39. Ke2 {[%emt 0:00:11]} Rxe3+ {[%emt 0:00:15]} 40. Kd2 {[%emt 0:00:04]} Qxh4 {[%emt 0:00:29]} 41. Kc2 {[%emt 0:00:10]} Qxf2+ {[%emt 0:00:05]} 42. Kb1 {[%emt 0:00:01]} Qh2 {[%emt 0:00:06]} 43. R1c6 {[%emt 0:00:04]} Re2 {[%emt 0:00:04]} 44. Rxh7+ {[%emt 0:00:03]} Qxh7+ {[%emt 0:00:13]} 45. Qxh7+ {[%emt 0:00:00]} 1/2-1/2

[Event "Polish University-ch Teams 2024"]
[Site "Lublin"]
[Date "2024.02.24"]
[Round "3.18"]
[White "Trybowska, Barbara"]
[Black "Adamczyk, Zuzanna"]
[Result "1/2-1/2"]
[ECO "D11"]
[WhiteElo "1859"]
[BlackElo "1970"]
[Annotator "NA RC"]
[PlyCount "109"]
[EventDate "2024.02.22"]
[EventType "team-tourn"]
[EventCountry "POL"]
[SourceTitle "playchess.com"]
[Source "ChessBase"]
[SourceQuality "1"]
[TimeControl "900+5"]

1. d4 {[%emt 0:00:01]} d5 {[%emt 0:00:01]} 2. c4 {[%emt 0:00:02]} c6 {[%emt 0:00:02]} 3. Nf3 {[%emt 0:00:03]} Nf6 {[%emt 0:00:02]} 4. g3 {[%emt 0:00:01]} Bg4 {[%emt 0:00:04]} 5. Bg2 {[%emt 0:00:03]} e6 {[%emt 0:00:23]} 6. O-O {[%emt 0:00:29]} Be7 {[%emt 0:00:16]} 7. Qb3 {[%emt 0:00:26]} Qb6 {[%emt 0:00:50]} 8. c5 {[%emt 0:00:06]} Qxb3 {[%emt 0:00:55]} 9. axb3 {[%emt 0:00:02]} Na6 {[%emt 0:00:52]} 10. Nc3 {[%emt 0:01:56]} O-O {[%emt 0:00:44]} 11. h3 {[%emt 0:01:32]} Bf5 {[%emt 0:00:38]} 12. g4 {[%emt 0:00:55]} Bc2 {[%emt 0:02:15]} 13. Ne1 {[%emt 0:03:43]} Bg6 {[%emt 0:01:27]} 14. Bf4 {[%emt 0:00:26]} Nd7 {[%emt 0:01:26]} 15. Nf3 {[%emt 0:00:51]} f6 {[%emt 0:00:37]} 16. e3 {[%emt 0:00:49]} e5 {[%emt 0:00:49]} 17. Bg3 {[%emt 0:00:04]} Bd3 {[%emt 0:01:00]} 18. Rfe1 {[%emt 0:01:13]} e4 {[%emt 0:00:42]} 19. Nh4 {[%emt 0:00:58]} g6 {[%emt 0:00:35]} 20. Bf1 {[%emt 0:00:16]} Nb4 {[%emt 0:00:23]} 21. Ra4 {[%emt 0:00:22]} Bxf1 {[%emt 0:01:09]} 22. Kxf1 {[%emt 0:00:03]} Nd3 {[%emt 0:00:06]} 23. Rea1 {[%emt 0:00:05]} a6 {[%emt 0:00:02]} 24. R1a2 {[%emt 0:01:06]} Nc1 {[%emt 0:00:26]} 25. R2a3 {[%emt 0:00:03]} Rac8 {[%emt 0:00:28]} 26. Ne2 {[%emt 0:00:25]} Nd3 {[%emt 0:00:09]} 27. Ra2 {[%emt 0:00:03]} Rfe8 {[%emt 0:00:19]} 28. Ng2 {[%emt 0:00:02]} g5 {[%emt 0:00:06]} 29. Ne1 {[%emt 0:00:07]} Nxe1 {[%emt 0:00:05]} 30. Kxe1 {[%emt 0:00:01]} Nf8 {[%emt 0:00:04]} 31. Nc3 {[%emt 0:00:16]} Ne6 {[%emt 0:00:06]} 32. Rb4 {[%emt 0:00:06]} Nd8 {[%emt 0:00:08]} 33. Na4 {[%emt 0:00:04]} a5 {[%emt 0:00:17]} 34. Nb6 {[%emt 0:00:07]} axb4 {[%emt 0:00:13]} 35. Nxc8 {[%emt 0:00:02]} Bf8 {[%emt 0:00:04]} 36. Nb6 {[%emt 0:00:24]} Ne6 {[%emt 0:00:08]} 37. Ra4 {[%emt 0:00:04]} Ng7 {[%emt 0:00:03]} 38. Rxb4 {[%emt 0:00:03]} f5 {[%emt 0:00:02]} 39. Kd2 {[%emt 0:00:09]} fxg4 {[%emt 0:00:01]} 40. hxg4 {[%emt 0:00:01]} Re7 {[%emt 0:00:03]} 41. Ra4 {[%emt 0:00:02]} Ne8 {[%emt 0:00:07]} 42. Nc8 {[%emt 0:00:04]} Rf7 {[%emt 0:00:02]} 43. Ra7 {[%emt 0:00:12]} Nf6 {[%emt 0:00:04]} 44. Nd6 {[%emt 0:00:20]} Bxd6 {[%emt 0:00:01]} 45. cxd6 {[%emt 0:00:02]} Nxg4 {[%emt 0:00:11]} 46. Ke2 {[%emt 0:00:01]} Rd7 {[%emt 0:00:08]} 47. Ra8+ {[%emt 0:00:05]} Kf7 {[%emt 0:00:08]} 48. f3 {[%emt 0:00:06]} exf3+ {[%emt 0:00:04]} 49. Kxf3 {[%emt 0:00:01]} h5 {[%emt 0:00:01]} 50. Rh8 {[%emt 0:00:04]} Nf6 {[%emt 0:00:02]} 51. Be5 {[%emt 0:00:05]} h4 {[%emt 0:00:11]} 52. Rh6 {[%emt 0:00:07]} Ne4 {[%emt 0:00:14]} 53. Rh7+ {[%emt 0:00:05]} Ke8 {[%emt 0:00:04]} 54. Rh8+ {[%emt 0:00:07]} Kf7 {[%emt 0:00:01]} 55. Rh7+ {[%emt 0:00:10]} 1/2-1/2

[Event "Polish University-ch Teams 2024"]
[Site "Lublin"]
[Date "2024.02.24"]
[Round "3.19"]
[White "Mis, Mieszko"]
[Black "Marczuk, Dominik"]
[Result "1/2-1/2"]
[ECO "A38"]
[WhiteElo "2325"]
[BlackElo "2283"]
[Annotator "TA"]
[PlyCount "78"]
[EventDate "2024.02.22"]
[EventType "team-tourn"]
[EventCountry "POL"]
[SourceTitle "playchess.com"]
[Source "ChessBase"]
[SourceQuality "1"]
[TimeControl "900+5"]

{[%evp 18,78,27,20,19,20,22,18,33,27,61,12,10,-30,14,9,14,19,37,24,12,17,17,17,29,0,13,0,0,0,31,23,39,35,23,0,0,0,0,0,0,-13,-13,-6,-7,-5,-3,-5,-1,-1,-1,-15,0,0,3,0,3,3,4,0,0,0,5]} 1. Nf3 {[%emt 0:00:08]} Nf6 {[%emt 0:00:02]} 2. c4 {[%emt 0:00:06]} g6 {[%emt 0:00:03]} 3. b3 {[%emt 0:00:04]} Bg7 {[%emt 0:00:01]} 4. Bb2 {[%emt 0:00:01]} O-O {[%emt 0:00:02]} 5. g3 {[%emt 0:00:04]} c5 {[%emt 0:00:52]} 6. Bg2 {[%emt 0:00:02]} Nc6 {[%emt 0:00:01]} 7. O-O {[%emt 0:00:02]} d6 {[%emt 0:00:48]} 8. Nc3 {[%emt 0:00:04]} e5 {[%emt 0:00:51]} 9. d3 {[%emt 0:00:04]} h6 {[%emt 0:00:25]} 10. Nd2 {[%emt 0:00:06][%cal Bf3d2,Bd2e4,Be4c3,Bc3e4][%mdl 32]} Be6 {[%emt 0:00:10]} 11. Nde4 {[%emt 0:00:07]} Ne8 {[%emt 0:00:25]} 12. Nd5 {[%emt 0:00:17]} f5 {[%emt 0:00:29]} 13. Nec3 {[%emt 0:00:10]} f4 {[%emt 0:00:49]} 14. Qd2 {[%emt 0:01:26]} (14. e3 $14) 14... g5 $11 {[%emt 0:00:11]} 15. Ne4 {[%emt 0:00:48][%cal Oh2h4]} Ne7 {[%emt 0:01:48]} 16. Nxe7+ {[%emt 0:00:14]} Qxe7 {[%emt 0:00:01]} 17. b4 {[%emt 0:00:10]} Nf6 {[%emt 0:01:17]} 18. bxc5 {[%emt 0:00:20]} Nxe4 {[%emt 0:00:09]} 19. Bxe4 {[%emt 0:00:06] Droht cxd6 und aus.} dxc5 {[%emt 0:00:01]} 20. Bc3 {[%emt 0:00:25]} Rad8 {[%emt 0:00:06]} 21. Rfb1 {[%emt 0:01:26]} b6 {[%emt 0:00:51]} 22. Qe1 {[%emt 0:00:04]} Bf5 {[%emt 0:00:28]} 23. Bd5+ {[%emt 0:00:23]} Kh8 {[%emt 0:00:28]} 24. a4 {[%emt 0:00:48]} e4 {[%emt 0:02:13]} 25. a5 {[%emt 0:01:26]} exd3 {[%emt 0:01:37][%cal Od8d5] [#] Und ...Rxd5! würde nun gewinnen.} 26. Bxg7+ {[%emt 0:03:57]} Kxg7 {[%emt 0:00:48] Die Stellung ist ausgeglichen.} 27. axb6 {[%emt 0:00:44]} axb6 {[%emt 0:00:49]} (27... Qxe2 $2 {geht unter.} 28. bxa7 (28. Rxa7+ Kg6 $18) 28... Qxe1+ 29. Rxe1 $18) 28. Qc3+ {[%emt 0:00:28]} Qf6 {[%emt 0:00:06]} (28... Kh7 {vereinfacht} 29. exd3 Rd6 30. Rb3 Qg7) 29. Ra7+ {[%emt 0:00:05]} Rd7 {[%emt 0:00:27]} 30. Rxd7+ {[%emt 0:00:40]} Bxd7 {[%emt 0:00:01]} 31. Qxf6+ {[%emt 0:00:23]} ({Bitte nicht} 31. Qxd3 Bf5 32. Be4 fxg3 33. Bxf5 gxh2+ (33... Qxf5 34. fxg3 Qf2+ 35. Kh1 $11) 34. Kxh2 Qxf5 35. Qxf5 Rxf5 $17) 31... Rxf6 {[%emt 0:00:02]} 32. exd3 {[%emt 0:00:02][%mdl 4096] Endspiel. KRB-KRB} Bf5 {[%emt 0:00:02]} 33. Rb3 {[%emt 0:00:21]} Rd6 {[%emt 0:00:10][%cal Of4f3]} 34. Kg2 {[%emt 0:00:09]} fxg3 {[%emt 0:00:12]} 35. hxg3 {[%emt 0:00:09]} Kf6 {[%emt 0:00:04]} 36. Kf3 {[%emt 0:00:05]} Be6 {[%emt 0:00:17]} 37. Be4 {[%emt 0:00:34]} Bf5 {[%emt 0:00:09]} 38. Bd5 {[%emt 0:00:30]} Be6 {[%emt 0:00:08]} 39. Be4 {[%emt 0:00:14]} Ke5 {[%emt 0:00:57] Gewichteter Fehlerwert: Weiß=0.08 (makellos) /Schwarz=0.08 (makellos) .  Fehler:       	Weiß=1     	---        Ungenau:       	Weiß=2     	Schwarz=3     OK:         	Weiß=13    	Schwarz=10    Bester:       	---       	Schwarz=1} 1/2-1/2

[Event "Polish University-ch Teams 2024"]
[Site "Lublin"]
[Date "2024.02.24"]
[Round "3.20"]
[White "Panek, Bartosz"]
[Black "Jarocka, Liwia"]
[Result "0-1"]
[ECO "B13"]
[WhiteElo "2207"]
[BlackElo "2199"]
[Annotator "RC"]
[PlyCount "78"]
[EventDate "2024.02.22"]
[EventType "team-tourn"]
[EventCountry "POL"]
[SourceTitle "playchess.com"]
[Source "ChessBase"]
[SourceQuality "1"]
[TimeControl "900+5"]

1. e4 {[%emt 0:00:01]} c6 {[%emt 0:00:00]} 2. d4 {[%emt 0:00:03]} d5 {[%emt 0:00:01]} 3. exd5 {[%emt 0:00:01]} cxd5 {[%emt 0:00:02]} 4. Nf3 {[%emt 0:00:03]} Nc6 {[%emt 0:00:21]} 5. c3 {[%emt 0:00:01]} Nf6 {[%emt 0:00:31]} 6. Bf4 {[%emt 0:01:03]} g6 {[%emt 0:01:17]} 7. Bd3 {[%emt 0:01:15]} Bg7 {[%emt 0:00:09]} 8. O-O {[%emt 0:00:43]} O-O {[%emt 0:00:43]} 9. Nbd2 {[%emt 0:01:02]} Bg4 {[%emt 0:00:03]} 10. h3 {[%emt 0:00:23]} Bxf3 {[%emt 0:00:01]} 11. Qxf3 {[%emt 0:00:47]} Rc8 {[%emt 0:00:36]} 12. Rfe1 {[%emt 0:00:27]} Qb6 {[%emt 0:00:41]} 13. Nb3 {[%emt 0:01:26]} e6 {[%emt 0:01:05]} 14. Rab1 {[%emt 0:01:47]} Nd7 {[%emt 0:00:19]} 15. Bd6 {[%emt 0:02:53]} Nxd4 {[%emt 0:00:52]} 16. Qg3 {[%emt 0:01:03]} Nxb3 {[%emt 0:00:04]} 17. Bxf8 {[%emt 0:00:03]} Rxf8 {[%emt 0:00:05]} 18. axb3 {[%emt 0:00:01]} Qxb3 {[%emt 0:00:39]} 19. Qc7 {[%emt 0:00:11]} Nf6 {[%emt 0:00:38]} 20. Rec1 {[%emt 0:01:40]} Ne8 {[%emt 0:00:01]} 21. Qe7 {[%emt 0:00:20]} Qb6 {[%emt 0:00:11]} 22. c4 {[%emt 0:00:30]} Bf6 {[%emt 0:01:51]} 23. Qa3 {[%emt 0:00:47]} dxc4 {[%emt 0:00:52]} 24. Bxc4 {[%emt 0:00:11]} Nd6 {[%emt 0:00:30]} 25. Bd3 {[%emt 0:00:08]} e5 {[%emt 0:00:20]} 26. Re1 {[%emt 0:00:16]} Re8 {[%emt 0:00:20]} 27. Re2 {[%emt 0:00:03]} Bg7 {[%emt 0:05:08]} 28. Rbe1 {[%emt 0:00:01]} Kh8 {[%emt 0:00:00]} 29. Kh1 {[%emt 0:00:04]} f5 {[%emt 0:00:00]} 30. f3 {[%emt 0:00:06]} a6 {[%emt 0:00:00]} 31. Qa2 {[%emt 0:00:12]} Qd4 {[%emt 0:00:00]} 32. Bc2 {[%emt 0:00:05]} Qf4 {[%emt 0:00:00]} 33. Qa3 {[%emt 0:00:05]} Nb5 {[%emt 0:00:00]} 34. Qa2 {[%emt 0:00:07]} e4 {[%emt 0:00:00]} 35. Qf7 {[%emt 0:00:03]} Rf8 {[%emt 0:00:00]} 36. Qxb7 {[%emt 0:00:02]} Be5 {[%emt 0:00:00]} 37. g4 {[%emt 0:00:09]} Qxf3+ {[%emt 0:00:00]} 38. Rg2 {[%emt 0:00:02]} Qxh3+ {[%emt 0:00:00]} 39. Kg1 {[%emt 0:00:01]} Bd4+ {[%emt 0:00:00]} 0-1

[Event "Polish University-ch Teams 2024"]
[Site "Lublin"]
[Date "2024.02.24"]
[Round "3.21"]
[White "Golecki, Jan"]
[Black "Choina, Adam"]
[Result "1-0"]
[ECO "B53"]
[WhiteElo "2185"]
[BlackElo "1900"]
[Annotator "RC"]
[PlyCount "49"]
[EventDate "2024.02.22"]
[EventType "team-tourn"]
[EventCountry "POL"]
[SourceTitle "playchess.com"]
[Source "ChessBase"]
[SourceQuality "1"]
[TimeControl "900+5"]

1. e4 {[%emt 0:00:03]} c5 {[%emt 0:00:01]} 2. Nf3 {[%emt 0:00:02]} d6 {[%emt 0:00:02]} 3. d4 {[%emt 0:00:01]} cxd4 {[%emt 0:00:01]} 4. Qxd4 {[%emt 0:00:01]} Nc6 {[%emt 0:00:05]} 5. Bb5 {[%emt 0:00:01]} Bd7 {[%emt 0:00:07]} 6. Qd3 {[%emt 0:00:01]} Nf6 {[%emt 0:00:46]} 7. Bg5 {[%emt 0:00:02]} e6 {[%emt 0:00:07]} 8. Nc3 {[%emt 0:00:01]} Be7 {[%emt 0:00:21]} 9. O-O-O {[%emt 0:00:04]} a6 {[%emt 0:00:07]} 10. Bxc6 {[%emt 0:00:02]} bxc6 {[%emt 0:00:05]} 11. e5 {[%emt 0:00:46]} Nd5 {[%emt 0:00:28]} 12. Bxe7 {[%emt 0:01:21]} Qxe7 {[%emt 0:00:08]} 13. Ne4 {[%emt 0:00:02]} dxe5 {[%emt 0:01:27]} 14. Nxe5 {[%emt 0:00:34]} f5 {[%emt 0:02:38]} 15. Ng3 {[%emt 0:02:54]} Ra7 {[%emt 0:01:11]} 16. c4 {[%emt 0:00:11]} Nf6 {[%emt 0:00:48]} 17. Rhe1 {[%emt 0:00:50]} O-O {[%emt 0:00:58]} 18. Qd6 {[%emt 0:04:19]} Be8 {[%emt 0:01:52]} 19. Nxc6 {[%emt 0:00:49]} Bxc6 {[%emt 0:00:11]} 20. Qxc6 {[%emt 0:00:02]} Rc7 {[%emt 0:00:18]} 21. Qxa6 {[%emt 0:00:04]} Rfc8 {[%emt 0:00:25]} 22. Nxf5 {[%emt 0:00:51]} Rxc4+ {[%emt 0:01:09]} 23. Kb1 {[%emt 0:00:01]} Qb4 {[%emt 0:00:15]} 24. Qxe6+ {[%emt 0:00:10]} Kh8 {[%emt 0:00:08]} 25. Nd6 {[%emt 0:00:06]} 1-0

[Event "Polish University-ch Teams 2024"]
[Site "Lublin"]
[Date "2024.02.24"]
[Round "3.22"]
[White "Szczepanik, Tomasz"]
[Black "Leskiewicz, Ignacy"]
[Result "0-1"]
[ECO "A49"]
[WhiteElo "1720"]
[BlackElo "2180"]
[Annotator "RC"]
[PlyCount "88"]
[EventDate "2024.02.22"]
[EventType "team-tourn"]
[EventCountry "POL"]
[SourceTitle "playchess.com"]
[Source "ChessBase"]
[SourceQuality "1"]
[TimeControl "900+5"]

1. Nf3 {[%emt 0:00:03]} c5 {[%emt 0:00:17]} 2. g3 {[%emt 0:00:09]} Nc6 {[%emt 0:00:01]} 3. d4 {[%emt 0:00:06]} cxd4 {[%emt 0:00:41]} 4. Nxd4 {[%emt 0:00:08]} Nf6 {[%emt 0:00:16]} 5. Bg2 {[%emt 0:00:15]} g6 {[%emt 0:00:29]} 6. O-O {[%emt 0:00:14]} Bg7 {[%emt 0:00:01]} 7. c3 {[%emt 0:01:02]} O-O {[%emt 0:00:17]} 8. e4 {[%emt 0:00:22]} Qc7 {[%emt 0:01:05]} 9. Be3 {[%emt 0:00:35]} d6 {[%emt 0:00:17]} 10. h3 {[%emt 0:03:04]} a6 {[%emt 0:01:38]} 11. Na3 {[%emt 0:00:58]} Rd8 {[%emt 0:00:20]} 12. Qe2 {[%emt 0:00:53]} e5 {[%emt 0:01:07]} 13. Nb3 {[%emt 0:01:17]} b5 {[%emt 0:00:32]} 14. Nc2 {[%emt 0:00:34]} Be6 {[%emt 0:01:36]} 15. Rfd1 {[%emt 0:00:32]} Bc4 {[%emt 0:01:07]} 16. Qe1 {[%emt 0:00:20]} a5 {[%emt 0:00:21]} 17. Na3 {[%emt 0:01:18]} Rab8 {[%emt 0:00:37]} 18. Nxc4 {[%emt 0:00:54]} bxc4 {[%emt 0:00:02]} 19. Nd2 {[%emt 0:00:01]} Ne7 {[%emt 0:01:09]} 20. Rab1 {[%emt 0:00:25]} d5 {[%emt 0:00:25]} 21. exd5 {[%emt 0:00:36]} Nfxd5 {[%emt 0:00:07]} 22. Qe2 {[%emt 0:00:29]} Nxe3 {[%emt 0:01:26]} 23. Qxe3 {[%emt 0:00:10]} Rd3 {[%emt 0:00:02]} 24. Qe1 {[%emt 0:00:35]} Rbd8 {[%emt 0:01:29]} 25. Bf1 {[%emt 0:00:12]} f5 {[%emt 0:00:20]} 26. Bxd3 {[%emt 0:00:52]} cxd3 {[%emt 0:00:01]} 27. Nb3 {[%emt 0:00:40]} a4 {[%emt 0:00:10]} 28. Nd2 {[%emt 0:00:03]} e4 {[%emt 0:00:24]} 29. Nf1 {[%emt 0:00:01]} Nc6 {[%emt 0:00:23]} 30. f3 {[%emt 0:00:28]} Ne5 {[%emt 0:00:08]} 31. Nh2 {[%emt 0:00:10]} Qc5+ {[%emt 0:00:36]} 32. Kg2 {[%emt 0:00:04]} e3 {[%emt 0:00:06]} 33. Nf1 {[%emt 0:00:01]} e2 {[%emt 0:00:01]} 34. Rd2 {[%emt 0:00:07]} Bh6 {[%emt 0:00:02]} 35. Rxe2 {[%emt 0:00:06]} dxe2 {[%emt 0:00:04]} 36. Qxe2 {[%emt 0:00:01]} Bg7 {[%emt 0:00:28]} 37. Re1 {[%emt 0:00:04]} Nc4 {[%emt 0:00:00]} 38. Qe6+ {[%emt 0:00:02]} Kh8 {[%emt 0:00:00]} 39. b3 {[%emt 0:00:03]} axb3 {[%emt 0:00:00]} 40. axb3 {[%emt 0:00:01]} Ne5 {[%emt 0:00:05]} 41. c4 {[%emt 0:00:06]} Nd3 {[%emt 0:00:02]} 42. Re2 {[%emt 0:00:04]} Nc1 {[%emt 0:00:10]} 43. Rc2 {[%emt 0:00:04]} Nxb3 {[%emt 0:00:02]} 44. Ne3 {[%emt 0:00:12]} Nd4 {[%emt 0:00:04]} 0-1